[Event "Late-Titled-Tuesday-Blitz-March-26-2024"]
[Site "Chess.com"]
[Date "2024.03.26"]
[Round "1"]
[White "DinaBelenkaya"]
[Black "XDPS"]
[Result "0-1"]
[WhiteElo "2479"]
[BlackElo "2898"]
[TimeControl "180+1"]
[EndTime "14:06:17 PDT"]
[Termination "XDPS won by resignation"]

1. Nf3 {[%clk 0:02:59.2]} 1... d6 {[%clk 0:03:00.9]} 2. g3 {[%clk 0:02:53.7]}
2... g6 {[%clk 0:03:00.3]} 3. Bg2 {[%clk 0:02:46.9]} 3... Bg7 {[%clk 0:03:01.2]}
4. d4 {[%clk 0:02:46.9]} 4... Nf6 {[%clk 0:02:59.1]} 5. O-O {[%clk 0:02:40.4]}
5... O-O {[%clk 0:02:58.3]} 6. c4 {[%clk 0:02:40.2]} 6... c6 {[%clk 0:02:57.8]}
7. Nc3 {[%clk 0:02:40.4]} 7... Bf5 {[%clk 0:02:56.4]} 8. h3 {[%clk 0:02:25.9]}
8... Ne4 {[%clk 0:02:54.4]} 9. Nd2 {[%clk 0:02:19.6]} 9... Nxc3 {[%clk
0:02:52.4]} 10. bxc3 {[%clk 0:02:20.5]} 10... Qc8 {[%clk 0:02:52.3]} 11. Kh2
{[%clk 0:02:16.8]} 11... e5 {[%clk 0:02:47.6]} 12. e4 {[%clk 0:02:14]} 12... Be6
{[%clk 0:02:46.1]} 13. f4 {[%clk 0:02:06.1]} 13... exd4 {[%clk 0:02:44.3]} 14.
cxd4 {[%clk 0:01:32.3]} 14... Bxd4 {[%clk 0:02:45.2]} 15. Rb1 {[%clk 0:01:32.4]}
15... Bg7 {[%clk 0:02:40.7]} 16. f5 {[%clk 0:01:28.5]} 16... gxf5 {[%clk
0:02:39.4]} 17. exf5 {[%clk 0:01:16.1]} 17... Bxf5 {[%clk 0:02:40.3]} 18. Rb3
{[%clk 0:01:09.6]} 18... Bg6 {[%clk 0:02:29.2]} 19. Ne4 {[%clk 0:01:06.1]} 19...
d5 {[%clk 0:02:06.9]} 20. cxd5 {[%clk 0:01:00.9]} 20... cxd5 {[%clk 0:02:07.8]}
21. Qxd5 {[%clk 0:00:53.2]} 21... Nc6 {[%clk 0:02:00.5]} 22. Nf6+ {[%clk
0:00:50.7]} 22... Kh8 {[%clk 0:01:55.3]} 23. Bb2 {[%clk 0:00:49.3]} 23... Rd8
{[%clk 0:01:46.6]} 24. Qg5 {[%clk 0:00:44.8]} 24... h6 {[%clk 0:01:36.3]} 25.
Qh4 {[%clk 0:00:43.6]} 25... Rd2 {[%clk 0:01:32.1]} 26. Bc3 {[%clk 0:00:32.6]}
26... Rc2 {[%clk 0:01:30.3]} 27. Nd5 {[%clk 0:00:26.5]} 27... Rxc3 {[%clk
0:01:24.5]} 28. Rxc3 {[%clk 0:00:16]} 28... Qd7 {[%clk 0:01:24.5]} 29. Nf6
{[%clk 0:00:14.2]} 29... Qd2 {[%clk 0:01:23.6]} 30. Rc4 {[%clk 0:00:10.6]} 30...
Qxa2 {[%clk 0:01:20.3]} 31. Rg4 {[%clk 0:00:10.5]} 31... Ne5 {[%clk 0:01:20.3]}
32. Rd4 {[%clk 0:00:06.3]} 32... Rc8 {[%clk 0:01:17.5]} 33. Nh5 {[%clk
0:00:06.6]} 33... Rc2 {[%clk 0:01:14.2]} 34. Rg1 {[%clk 0:00:06.2]} 34... Nf3+
{[%clk 0:01:13.7]} 35. Kh1 {[%clk 0:00:05.6]} 35... Nxh4 {[%clk 0:01:13.5]} 36.
gxh4 {[%clk 0:00:05.5]} 36... Bxd4 {[%clk 0:01:12.5]} 0-1

[Event "Late-Titled-Tuesday-Blitz-March-26-2024"]
[Site "Chess.com"]
[Date "2024.03.26"]
[Round "1"]
[White "HelenaWalker2912"]
[Black "Shankland"]
[Result "0-1"]
[WhiteElo "2492"]
[BlackElo "2923"]
[TimeControl "180+1"]
[EndTime "14:06:18 PDT"]
[Termination "Shankland won on time"]

1. d4 {[%clk 0:03:00.9]} 1... d5 {[%clk 0:02:58.8]} 2. c4 {[%clk 0:03:01]} 2...
c6 {[%clk 0:02:59.4]} 3. Nf3 {[%clk 0:03:01]} 3... Nf6 {[%clk 0:02:59]} 4. Nc3
{[%clk 0:03:01.4]} 4... e6 {[%clk 0:02:59.3]} 5. e3 {[%clk 0:03:01.7]} 5... Nbd7
{[%clk 0:02:59.1]} 6. Qc2 {[%clk 0:03:01.8]} 6... Bd6 {[%clk 0:02:58.6]} 7. Bd3
{[%clk 0:03:01.9]} 7... O-O {[%clk 0:02:58.2]} 8. O-O {[%clk 0:03:00]} 8... dxc4
{[%clk 0:02:57.9]} 9. Bxc4 {[%clk 0:03:00.9]} 9... b5 {[%clk 0:02:58.3]} 10. Bd3
{[%clk 0:03:00.8]} 10... Bb7 {[%clk 0:02:57]} 11. e4 {[%clk 0:02:32]} 11... e5
{[%clk 0:02:56.7]} 12. dxe5 {[%clk 0:02:30.2]} 12... Nxe5 {[%clk 0:02:57]} 13.
Nxe5 {[%clk 0:02:30.7]} 13... Bxe5 {[%clk 0:02:57.4]} 14. h3 {[%clk 0:02:31.3]}
14... Re8 {[%clk 0:02:57.2]} 15. Be3 {[%clk 0:02:20.3]} 15... Qc7 {[%clk
0:02:52.3]} 16. Rfe1 {[%clk 0:02:03.6]} 16... a6 {[%clk 0:02:50.2]} 17. a4
{[%clk 0:01:56.9]} 17... Rad8 {[%clk 0:02:47.8]} 18. Rad1 {[%clk 0:01:53.9]}
18... h6 {[%clk 0:02:41.4]} 19. Ne2 {[%clk 0:01:42.4]} 19... c5 {[%clk
0:02:34.1]} 20. f4 {[%clk 0:01:21.3]} 20... c4 {[%clk 0:02:32.9]} 21. fxe5
{[%clk 0:01:04.8]} 21... Qxe5 {[%clk 0:02:32.9]} 22. Bxc4 {[%clk 0:01:05.1]}
22... Bxe4 {[%clk 0:02:27.5]} 23. Qc3 {[%clk 0:00:35.4]} 23... Rxd1 {[%clk
0:02:21.8]} 24. Rxd1 {[%clk 0:00:34.1]} 24... bxc4 {[%clk 0:02:12.5]} 25. Qxe5
{[%clk 0:00:25]} 25... Rxe5 {[%clk 0:02:13.4]} 26. Bd4 {[%clk 0:00:22.3]} 26...
Re6 {[%clk 0:02:13.1]} 27. Bxf6 {[%clk 0:00:20.3]} 27... Rxf6 {[%clk 0:02:12.8]}
28. Rd4 {[%clk 0:00:20.1]} 28... Bd3 {[%clk 0:02:11.3]} 29. Nf4 {[%clk 0:00:20]}
29... Bc2 {[%clk 0:01:49.7]} 30. Rxc4 {[%clk 0:00:19.3]} 30... Bb3 {[%clk
0:01:50]} 31. Rb4 {[%clk 0:00:19.2]} 31... Ba2 {[%clk 0:01:50.4]} 32. Nd3 {[%clk
0:00:17.6]} 32... a5 {[%clk 0:01:50.6]} 33. Rd4 {[%clk 0:00:17]} 33... Rc6
{[%clk 0:01:49.2]} 34. Ne5 {[%clk 0:00:11.9]} 34... Rc5 {[%clk 0:01:46.6]} 35.
Rd8+ {[%clk 0:00:08.1]} 35... Kh7 {[%clk 0:01:46.3]} 36. Nd7 {[%clk 0:00:08.3]}
36... Rc1+ {[%clk 0:01:46.4]} 37. Kf2 {[%clk 0:00:07.9]} 37... g5 {[%clk
0:01:46.9]} 38. Rb8 {[%clk 0:00:04.8]} 38... Rc2+ {[%clk 0:01:44.4]} 39. Ke3
{[%clk 0:00:03.6]} 39... Rxg2 {[%clk 0:01:43.6]} 40. Ne5 {[%clk 0:00:03.4]}
40... Kg7 {[%clk 0:01:42.7]} 41. Rb5 {[%clk 0:00:02.4]} 41... Be6 {[%clk
0:01:40.5]} 42. Rxa5 {[%clk 0:00:01.2]} 42... Rxb2 {[%clk 0:01:39.9]} 43. h4
{[%clk 0:00:01.2]} 43... gxh4 {[%clk 0:01:39.5]} 44. Nf3 {[%clk 0:00:01.1]}
44... h3 {[%clk 0:01:39.1]} 0-1

[Event "Late-Titled-Tuesday-Blitz-March-26-2024"]
[Site "Chess.com"]
[Date "2024.03.26"]
[Round "1"]
[White "TorFredrikKaasen"]
[Black "EvilMorty23"]
[Result "1-0"]
[WhiteElo "2833"]
[BlackElo "2439"]
[TimeControl "180+1"]
[EndTime "14:06:18 PDT"]
[Termination "TorFredrikKaasen won by checkmate"]

1. e4 {[%clk 0:03:00.9]} 1... e6 {[%clk 0:02:59.2]} 2. d4 {[%clk 0:03:00.7]}
2... d5 {[%clk 0:03:00.1]} 3. Nc3 {[%clk 0:03:00.7]} 3... Nf6 {[%clk 0:03:00.6]}
4. e5 {[%clk 0:02:58.3]} 4... Nfd7 {[%clk 0:03:00.7]} 5. f4 {[%clk 0:02:58.9]}
5... c5 {[%clk 0:03:01.6]} 6. Nf3 {[%clk 0:02:59.3]} 6... Nc6 {[%clk 0:03:02.5]}
7. Be3 {[%clk 0:02:59.6]} 7... a6 {[%clk 0:03:02.3]} 8. Bd3 {[%clk 0:02:53.4]}
8... b5 {[%clk 0:03:00.7]} 9. O-O {[%clk 0:02:50.9]} 9... cxd4 {[%clk
0:02:49.6]} 10. Nxd4 {[%clk 0:02:50]} 10... Bc5 {[%clk 0:02:39.2]} 11. Nce2
{[%clk 0:02:49.8]} 11... Qb6 {[%clk 0:02:38.4]} 12. c3 {[%clk 0:02:50]} 12... f6
{[%clk 0:02:24.1]} 13. exf6 {[%clk 0:02:39.7]} 13... gxf6 {[%clk 0:02:23.1]} 14.
b4 {[%clk 0:02:33.1]} 14... Bxd4 {[%clk 0:02:20.5]} 15. Nxd4 {[%clk 0:02:32.3]}
15... Nf8 {[%clk 0:01:49]} 16. Qh5+ {[%clk 0:02:31.2]} 16... Kd7 {[%clk
0:01:45.8]} 17. a4 {[%clk 0:01:57.4]} 17... Nxd4 {[%clk 0:01:22.2]} 18. Bxd4
{[%clk 0:01:56.4]} 18... Qd8 {[%clk 0:01:22.2]} 19. axb5 {[%clk 0:01:53.4]}
19... Qe7 {[%clk 0:00:55]} 20. bxa6 {[%clk 0:01:50.9]} 20... Rg8 {[%clk
0:00:50]} 21. b5 {[%clk 0:01:46.2]} 21... Ng6 {[%clk 0:00:42.1]} 22. b6 {[%clk
0:01:42.7]} 22... Qg7 {[%clk 0:00:33.9]} 23. Qe2 {[%clk 0:01:35.1]} 23... Nh4
{[%clk 0:00:30.8]} 24. g3 {[%clk 0:01:32.8]} 24... Nf5 {[%clk 0:00:07.3]} 25.
Bxf5 {[%clk 0:01:32.3]} 25... exf5 {[%clk 0:00:08.2]} 26. b7 {[%clk 0:01:31.9]}
26... Bxb7 {[%clk 0:00:07.3]} 27. axb7 {[%clk 0:01:31.2]} 27... Rxa1 {[%clk
0:00:06.4]} 28. Qb5+ {[%clk 0:01:29.8]} 28... Kc7 {[%clk 0:00:06.1]} 29. Rxa1
{[%clk 0:01:29.7]} 29... Rb8 {[%clk 0:00:05.3]} 30. Bb6+ {[%clk 0:01:26.2]}
30... Kd6 {[%clk 0:00:04.8]} 31. Qc5+ {[%clk 0:01:25.9]} 31... Ke6 {[%clk
0:00:03.3]} 32. Re1+ {[%clk 0:01:25.6]} 32... Kf7 {[%clk 0:00:03.8]} 33. Re7+
{[%clk 0:01:25.6]} 33... Kg6 {[%clk 0:00:04]} 34. Rxg7+ {[%clk 0:01:26.5]} 34...
Kxg7 {[%clk 0:00:04.7]} 35. Qc7+ {[%clk 0:01:27]} 35... Kg6 {[%clk 0:00:05]} 36.
Qxb8 {[%clk 0:01:27.9]} 36... d4 {[%clk 0:00:05.8]} 37. Qg8+ {[%clk 0:01:27.6]}
37... Kh5 {[%clk 0:00:06.7]} 38. b8=Q {[%clk 0:01:25.7]} 38... dxc3 {[%clk
0:00:04.6]} 39. Qbe8+ {[%clk 0:01:26.1]} 39... Kh6 {[%clk 0:00:04.8]} 40. Bc5
{[%clk 0:01:23]} 40... c2 {[%clk 0:00:04.9]} 41. Bf8# {[%clk 0:01:23.2]} 1-0

[Event "Late-Titled-Tuesday-Blitz-March-26-2024"]
[Site "Chess.com"]
[Date "2024.03.26"]
[Round "1"]
[White "GrotBchess"]
[Black "AnthonyWirig"]
[Result "0-1"]
[WhiteElo "2435"]
[BlackElo "2818"]
[TimeControl "180+1"]
[EndTime "14:06:19 PDT"]
[Termination "AnthonyWirig won by resignation"]

1. e4 {[%clk 0:03:00.9]} 1... e6 {[%clk 0:02:57.9]} 2. d4 {[%clk 0:03:00.7]}
2... d5 {[%clk 0:02:58.5]} 3. Nc3 {[%clk 0:03:01]} 3... Bb4 {[%clk 0:02:57.8]}
4. e5 {[%clk 0:02:58.9]} 4... c5 {[%clk 0:02:56.9]} 5. Bd2 {[%clk 0:02:59.4]}
5... Ne7 {[%clk 0:02:55.5]} 6. a3 {[%clk 0:02:55.6]} 6... Bxc3 {[%clk
0:02:55.3]} 7. Bxc3 {[%clk 0:02:56.5]} 7... b6 {[%clk 0:02:52.1]} 8. Qg4 {[%clk
0:02:52.8]} 8... Kf8 {[%clk 0:02:50.5]} 9. h4 {[%clk 0:02:51.1]} 9... h5 {[%clk
0:02:42.2]} 10. Qf4 {[%clk 0:02:50.2]} 10... Ba6 {[%clk 0:02:34.6]} 11. Nf3
{[%clk 0:02:46.4]} 11... Ng6 {[%clk 0:02:31.3]} 12. Qg3 {[%clk 0:02:41.2]} 12...
Bxf1 {[%clk 0:02:30.1]} 13. Rxf1 {[%clk 0:02:40.2]} 13... Nc6 {[%clk 0:02:29.3]}
14. O-O-O {[%clk 0:02:39.1]} 14... Nce7 {[%clk 0:02:21]} 15. Qh3 {[%clk
0:02:31.1]} 15... Nf5 {[%clk 0:02:19.1]} 16. g3 {[%clk 0:02:29.6]} 16... a5
{[%clk 0:02:15.6]} 17. Rfe1 {[%clk 0:02:26.9]} 17... c4 {[%clk 0:02:15]} 18. Bd2
{[%clk 0:02:18.1]} 18... b5 {[%clk 0:02:12.6]} 19. Bg5 {[%clk 0:02:18]} 19...
Qb6 {[%clk 0:02:11.7]} 20. g4 {[%clk 0:02:17.8]} 20... hxg4 {[%clk 0:02:10.8]}
21. Qxg4 {[%clk 0:02:18.7]} 21... b4 {[%clk 0:02:04.3]} 22. a4 {[%clk
0:02:08.9]} 22... Qc6 {[%clk 0:01:58.4]} 23. h5 {[%clk 0:02:07.3]} 23... Qxa4
{[%clk 0:01:45.6]} 24. Kd2 {[%clk 0:01:44.7]} 24... c3+ {[%clk 0:01:40.5]} 25.
bxc3 {[%clk 0:01:35.9]} 25... bxc3+ {[%clk 0:01:41.4]} 26. Ke2 {[%clk
0:01:35.9]} 26... Qxc2+ {[%clk 0:01:25.3]} 27. Kf1 {[%clk 0:01:35.4]} 27... Nge7
{[%clk 0:01:18.8]} 28. Bxe7+ {[%clk 0:01:13.5]} 28... Kxe7 {[%clk 0:01:16]} 29.
Rc1 {[%clk 0:01:13.4]} 29... Qd3+ {[%clk 0:01:10.7]} 30. Kg1 {[%clk 0:01:11.5]}
30... Rhb8 {[%clk 0:00:49.2]} 31. Nh4 {[%clk 0:01:09.3]} 31... Nxd4 {[%clk
0:00:42.1]} 32. Qxg7 {[%clk 0:00:59.3]} 32... Rg8 {[%clk 0:00:38.9]} 33. Ng6+
{[%clk 0:00:56.3]} 33... Qxg6+ {[%clk 0:00:37.6]} 34. Qxg6 {[%clk 0:00:48.5]}
34... fxg6 {[%clk 0:00:33.7]} 35. Rxc3 {[%clk 0:00:48.4]} 35... gxh5+ {[%clk
0:00:33]} 36. Kh2 {[%clk 0:00:48.4]} 36... Rac8 {[%clk 0:00:30.4]} 37. Ra3
{[%clk 0:00:47.5]} 37... Nc2 {[%clk 0:00:28.9]} 0-1

[Event "Late-Titled-Tuesday-Blitz-March-26-2024"]
[Site "Chess.com"]
[Date "2024.03.26"]
[Round "1"]
[White "artooon"]
[Black "dennisodessa"]
[Result "1-0"]
[WhiteElo "3033"]
[BlackElo "2517"]
[TimeControl "180+1"]
[EndTime "14:06:26 PDT"]
[Termination "artooon won by resignation"]

1. e4 {[%clk 0:03:00.9]} 1... e6 {[%clk 0:03:00.3]} 2. d4 {[%clk 0:02:59.2]}
2... d5 {[%clk 0:03:01]} 3. Nd2 {[%clk 0:02:58.9]} 3... Be7 {[%clk 0:03:01]} 4.
Ngf3 {[%clk 0:02:58.9]} 4... Nf6 {[%clk 0:03:01.2]} 5. e5 {[%clk 0:02:59.4]}
5... Nfd7 {[%clk 0:03:01.9]} 6. c3 {[%clk 0:02:56.4]} 6... c5 {[%clk 0:03:02.8]}
7. Bd3 {[%clk 0:02:56.6]} 7... Nc6 {[%clk 0:03:03.7]} 8. O-O {[%clk 0:02:56.9]}
8... O-O {[%clk 0:03:01.6]} 9. a3 {[%clk 0:02:45.2]} 9... cxd4 {[%clk
0:02:59.9]} 10. cxd4 {[%clk 0:02:43.7]} 10... f6 {[%clk 0:03:00.8]} 11. exf6
{[%clk 0:02:43]} 11... Nxf6 {[%clk 0:03:01.7]} 12. Re1 {[%clk 0:02:42.6]} 12...
a5 {[%clk 0:03:01.1]} 13. Nf1 {[%clk 0:02:42.3]} 13... Bd6 {[%clk 0:03:00.1]}
14. Ng3 {[%clk 0:02:41.8]} 14... Qb6 {[%clk 0:02:53.4]} 15. Bc2 {[%clk 0:02:25]}
15... Bd7 {[%clk 0:02:44.3]} 16. Rb1 {[%clk 0:02:17.3]} 16... Rae8 {[%clk
0:02:42.7]} 17. Bg5 {[%clk 0:02:07.2]} 17... Ng4 {[%clk 0:02:28.1]} 18. Qd3
{[%clk 0:02:00.7]} 18... g6 {[%clk 0:02:26.4]} 19. Qd2 {[%clk 0:01:43.7]} 19...
e5 {[%clk 0:02:05.3]} 20. dxe5 {[%clk 0:01:39.5]} 20... Ncxe5 {[%clk 0:02:06.2]}
21. Nxe5 {[%clk 0:01:00.6]} 21... Bxe5 {[%clk 0:01:39.5]} 22. Rf1 {[%clk
0:00:51.2]} 22... Bb5 {[%clk 0:01:24.2]} 23. Bd3 {[%clk 0:00:35.5]} 23... Nxf2
{[%clk 0:00:58]} 24. Bxb5 {[%clk 0:00:29.8]} 24... Ne4+ {[%clk 0:00:39]} 25. Be3
{[%clk 0:00:29.8]} 25... Qxb5 {[%clk 0:00:39.7]} 26. Nxe4 {[%clk 0:00:30.2]}
26... dxe4 {[%clk 0:00:40.4]} 27. Rfe1 {[%clk 0:00:23.5]} 27... Qd3 {[%clk
0:00:39.3]} 28. Qxa5 {[%clk 0:00:22.3]} 28... Bd4 {[%clk 0:00:38.8]} 29. Qd5+
{[%clk 0:00:19.6]} 1-0

[Event "Late-Titled-Tuesday-Blitz-March-26-2024"]
[Site "Chess.com"]
[Date "2024.03.26"]
[Round "1"]
[White "Rikikits"]
[Black "kinga2008"]
[Result "1-0"]
[WhiteElo "2843"]
[BlackElo "2447"]
[TimeControl "180+1"]
[EndTime "14:06:26 PDT"]
[Termination "Rikikits won by resignation"]

1. d4 {[%clk 0:02:59.4]} 1... g6 {[%clk 0:02:47.6]} 2. h4 {[%clk 0:02:57.1]}
2... Bg7 {[%clk 0:02:45.2]} 3. h5 {[%clk 0:02:57.1]} 3... e6 {[%clk 0:02:40.1]}
4. e4 {[%clk 0:02:56.2]} 4... d5 {[%clk 0:02:38.2]} 5. h6 {[%clk 0:02:50.5]}
5... Bf6 {[%clk 0:02:23]} 6. e5 {[%clk 0:02:46]} 6... Be7 {[%clk 0:02:22.7]} 7.
Nf3 {[%clk 0:02:38.8]} 7... c5 {[%clk 0:02:22.8]} 8. c3 {[%clk 0:02:28.2]} 8...
Nc6 {[%clk 0:02:22.8]} 9. a3 {[%clk 0:02:26.3]} 9... Bd7 {[%clk 0:02:17.7]} 10.
Bd3 {[%clk 0:02:25.2]} 10... Qb6 {[%clk 0:02:16.7]} 11. Bc2 {[%clk 0:02:18.5]}
11... Rc8 {[%clk 0:02:16.4]} 12. O-O {[%clk 0:02:15.7]} 12... c4 {[%clk
0:02:02.3]} 13. Nh2 {[%clk 0:02:09.8]} 13... f6 {[%clk 0:01:47.5]} 14. exf6
{[%clk 0:01:49.8]} 14... Nxf6 {[%clk 0:01:48.4]} 15. Nd2 {[%clk 0:01:47.9]}
15... O-O {[%clk 0:01:39.7]} 16. Ndf3 {[%clk 0:01:47.8]} 16... Bd6 {[%clk
0:01:31.1]} 17. Re1 {[%clk 0:01:47.2]} 17... Qc7 {[%clk 0:01:23.2]} 18. Bg5
{[%clk 0:01:36.4]} 18... Nh5 {[%clk 0:01:01.2]} 19. Ng4 {[%clk 0:01:30]} 19...
Bf4 {[%clk 0:00:45.2]} 20. Qe2 {[%clk 0:01:10.6]} 20... Rce8 {[%clk 0:00:03.4]}
21. Bxf4 {[%clk 0:01:10.1]} 21... Qxf4 {[%clk 0:00:04.2]} 22. Nfe5 {[%clk
0:01:09.9]} 22... Nxe5 {[%clk 0:00:04]} 23. Nxe5 {[%clk 0:01:09.9]} 23... Bc8
{[%clk 0:00:03.5]} 24. g3 {[%clk 0:01:08.2]} 24... Qxh6 {[%clk 0:00:03.7]} 25.
Kg2 {[%clk 0:01:07.6]} 25... Qg5 {[%clk 0:00:03.9]} 26. Qg4 {[%clk 0:01:03.4]}
26... Qd2 {[%clk 0:00:02]} 27. Re2 {[%clk 0:01:03]} 27... Qh6 {[%clk 0:00:02.3]}
28. Rh1 {[%clk 0:01:01.8]} 28... Kh8 {[%clk 0:00:02.8]} 29. Bxg6 {[%clk
0:00:58.3]} 29... Nf4+ {[%clk 0:00:02.3]} 30. gxf4 {[%clk 0:00:57]} 30... Qxf4
{[%clk 0:00:00.8]} 31. Rxh7+ {[%clk 0:00:55.8]} 1-0

[Event "Late-Titled-Tuesday-Blitz-March-26-2024"]
[Site "Chess.com"]
[Date "2024.03.26"]
[Round "1"]
[White "Agibileg"]
[Black "wanyaland"]
[Result "1-0"]
[WhiteElo "2765"]
[BlackElo "2411"]
[TimeControl "180+1"]
[EndTime "14:06:26 PDT"]
[Termination "Agibileg won by resignation"]

1. d4 {[%clk 0:03:00.9]} 1... d5 {[%clk 0:02:58.9]} 2. c4 {[%clk 0:03:00.9]}
2... e6 {[%clk 0:02:58.5]} 3. Nc3 {[%clk 0:03:00.5]} 3... Be7 {[%clk 0:02:58.4]}
4. cxd5 {[%clk 0:02:57.8]} 4... exd5 {[%clk 0:02:58.3]} 5. Qc2 {[%clk
0:02:58.4]} 5... c6 {[%clk 0:02:58.2]} 6. Nf3 {[%clk 0:02:58.2]} 6... Nf6 {[%clk
0:02:58.1]} 7. Bg5 {[%clk 0:02:58.6]} 7... O-O {[%clk 0:02:57.2]} 8. e3 {[%clk
0:02:58.9]} 8... Nbd7 {[%clk 0:02:57.4]} 9. Bd3 {[%clk 0:02:59.1]} 9... b5
{[%clk 0:02:57.8]} 10. O-O {[%clk 0:02:58.7]} 10... Bb7 {[%clk 0:02:57.9]} 11.
Rfe1 {[%clk 0:02:55.7]} 11... Re8 {[%clk 0:02:56.2]} 12. Rad1 {[%clk 0:02:54.6]}
12... h6 {[%clk 0:02:52.9]} 13. Bf4 {[%clk 0:02:50.4]} 13... Nb6 {[%clk
0:02:52.5]} 14. e4 {[%clk 0:02:48.7]} 14... b4 {[%clk 0:02:51.8]} 15. Nb1 {[%clk
0:02:39]} 15... dxe4 {[%clk 0:02:51]} 16. Bxe4 {[%clk 0:02:38.9]} 16... Nxe4
{[%clk 0:02:51.1]} 17. Qxe4 {[%clk 0:02:29.3]} 17... Nd5 {[%clk 0:02:50]} 18.
Be5 {[%clk 0:02:24.1]} 18... Bf8 {[%clk 0:02:49]} 19. Qc2 {[%clk 0:02:18.7]}
19... Rc8 {[%clk 0:02:47.2]} 20. Nbd2 {[%clk 0:02:17.2]} 20... c5 {[%clk
0:02:46.5]} 21. dxc5 {[%clk 0:02:17.3]} 21... Bxc5 {[%clk 0:02:44.3]} 22. Nc4
{[%clk 0:02:13.6]} 22... Qd7 {[%clk 0:02:30.3]} 23. h3 {[%clk 0:01:52.1]} 23...
Qb5 {[%clk 0:02:28.9]} 24. b3 {[%clk 0:01:50]} 24... Nb6 {[%clk 0:02:18.3]} 25.
Nh4 {[%clk 0:01:34.5]} 25... Nxc4 {[%clk 0:02:16.2]} 26. bxc4 {[%clk 0:01:35.4]}
26... Qb6 {[%clk 0:02:13.8]} 27. Qf5 {[%clk 0:01:21.9]} 27... Re6 {[%clk
0:01:58.4]} 28. Rd7 {[%clk 0:01:17.2]} 28... Rf8 {[%clk 0:01:57.8]} 29. Rf1
{[%clk 0:01:06.8]} 29... Qc6 {[%clk 0:01:54.6]} 30. Rd5 {[%clk 0:01:02.2]} 30...
Qc8 {[%clk 0:01:50.9]} 31. Bxg7 {[%clk 0:00:59.1]} 31... Bxd5 {[%clk 0:01:42.7]}
32. Bxf8 {[%clk 0:00:55.4]} 32... Bxc4 {[%clk 0:01:27.3]} 33. Bxc5 {[%clk
0:00:36.7]} 33... Bxf1 {[%clk 0:01:26.8]} 34. Qg4+ {[%clk 0:00:36.3]} 34... Kh7
{[%clk 0:01:22.4]} 35. Bd4 {[%clk 0:00:36.5]} 35... Qg8 {[%clk 0:01:14.5]} 36.
Qf5+ {[%clk 0:00:36.7]} 36... Rg6 {[%clk 0:01:12.8]} 37. Kxf1 {[%clk 0:00:36.9]}
37... Qd8 {[%clk 0:01:03.1]} 38. Qxf7+ {[%clk 0:00:35.7]} 1-0

[Event "Late-Titled-Tuesday-Blitz-March-26-2024"]
[Site "Chess.com"]
[Date "2024.03.26"]
[Round "1"]
[White "Zhigalko_Sergei"]
[Black "KingCrusher275"]
[Result "1-0"]
[WhiteElo "2889"]
[BlackElo "2470"]
[TimeControl "180+1"]
[EndTime "14:06:27 PDT"]
[Termination "Zhigalko_Sergei won by resignation"]

1. e4 {[%clk 0:03:00.9]} 1... e5 {[%clk 0:02:58.9]} 2. Nf3 {[%clk 0:03:00.9]}
2... Nf6 {[%clk 0:02:59.2]} 3. d4 {[%clk 0:03:00.1]} 3... Nxe4 {[%clk
0:02:58.5]} 4. Bd3 {[%clk 0:02:59.6]} 4... d5 {[%clk 0:02:58.7]} 5. Nxe5 {[%clk
0:02:57.5]} 5... Nd7 {[%clk 0:02:58.9]} 6. Nxd7 {[%clk 0:02:57.4]} 6... Bxd7
{[%clk 0:02:55.6]} 7. O-O {[%clk 0:02:57.8]} 7... Be7 {[%clk 0:02:50.8]} 8. Re1
{[%clk 0:02:56.8]} 8... Nd6 {[%clk 0:02:28.8]} 9. Qh5 {[%clk 0:02:35.8]} 9...
Be6 {[%clk 0:02:14.1]} 10. Rxe6 {[%clk 0:02:34.7]} 10... g6 {[%clk 0:02:10.7]}
11. Qe5 {[%clk 0:02:18.4]} 11... Rf8 {[%clk 0:01:39.2]} 12. Rxe7+ {[%clk
0:01:52.7]} 12... Qxe7 {[%clk 0:01:38.2]} 13. Nc3 {[%clk 0:01:52.1]} 13... c6
{[%clk 0:01:32.4]} 14. Bh6 {[%clk 0:01:46.7]} 14... Rg8 {[%clk 0:01:23.9]} 15.
Re1 {[%clk 0:01:43.9]} 15... Qxe5 {[%clk 0:01:21.1]} 16. dxe5 {[%clk 0:01:43.9]}
16... Nf5 {[%clk 0:01:17.8]} 17. Bxf5 {[%clk 0:01:44]} 17... gxf5 {[%clk
0:01:18]} 18. Ne2 {[%clk 0:01:42.2]} 18... Rg4 {[%clk 0:01:05.2]} 19. Bf4 {[%clk
0:01:35.5]} 19... Kd7 {[%clk 0:01:00.7]} 20. g3 {[%clk 0:01:35.5]} 20... c5
{[%clk 0:00:51.6]} 21. Rd1 {[%clk 0:01:32.8]} 21... Kc6 {[%clk 0:00:51.9]} 22.
Kg2 {[%clk 0:01:30.9]} 22... Rd8 {[%clk 0:00:49.8]} 23. c3 {[%clk 0:01:28.8]}
23... b5 {[%clk 0:00:48]} 24. Kf3 {[%clk 0:01:28.8]} 24... a5 {[%clk 0:00:47.2]}
25. h4 {[%clk 0:01:28.1]} 25... b4 {[%clk 0:00:47.1]} 26. Bg5 {[%clk 0:01:03.9]}
26... Rd7 {[%clk 0:00:46.1]} 27. Nf4 {[%clk 0:01:03.6]} 27... a4 {[%clk
0:00:33]} 28. cxb4 {[%clk 0:01:03]} 28... cxb4 {[%clk 0:00:31.7]} 29. Kg2 {[%clk
0:00:57.1]} 29... h6 {[%clk 0:00:20.6]} 30. Bxh6 {[%clk 0:00:56.9]} 30... Rg8
{[%clk 0:00:20.6]} 31. Bg5 {[%clk 0:00:51]} 31... d4 {[%clk 0:00:20.7]} 32. Bf6
{[%clk 0:00:49.3]} 32... a3 {[%clk 0:00:19.2]} 33. bxa3 {[%clk 0:00:46.7]} 33...
bxa3 {[%clk 0:00:18.5]} 34. h5 {[%clk 0:00:47.2]} 34... Kc5 {[%clk 0:00:15.9]}
35. h6 {[%clk 0:00:47]} 1-0